[Event "Titled Tuesday Blitz February 21 Late 2023"]
[White "Stachanczyk, Jacek"]
[Black "Mazurkiewicz, Michal"]
[WhiteFideId "1116657"]
[BlackFideId "1124943"]
[WhiteElo "2147"]
[BlackElo "2145"]
[Result "0-1"]
[Round "02"]
[TimeControl "180+2"]
[Date "2023.02.21"]
[WhiteClock "0:00:18"]
[BlackClock "0:00:16"]

1. e4 {[%clk 0:02:59]}  d6 {[%clk 0:02:59]} 2. d4 {[%clk 0:02:54]}  Nf6 {[%clk 0:03:00]} 3. Nc3 {[%clk 0:02:55]}  c6 {[%clk 0:02:58]} 4. f4 {[%clk 0:02:55]}  Qb6 {[%clk 0:02:57]} 5. Be2 {[%clk 0:02:39]}  e5 {[%clk 0:02:44]} 6. Nf3 {[%clk 0:02:37]}  Nbd7 {[%clk 0:02:33]} 7. O-O {[%clk 0:02:24]}  Be7 {[%clk 0:02:26]} 8. Kh1 {[%clk 0:02:19]}  O-O {[%clk 0:02:20]} 9. a3 {[%clk 0:02:06]}  Re8 {[%clk 0:02:14]} 10. Be3 {[%clk 0:02:06]}  Qc7 {[%clk 0:02:11]} 11. Qe1 {[%clk 0:01:56]}  Ng4 {[%clk 0:02:07]} 12. Bg1 {[%clk 0:01:54]}  exf4 {[%clk 0:02:06]} 13. Bc4 {[%clk 0:01:44]}  b5 {[%clk 0:01:50]} 14. Ba2 {[%clk 0:01:32]}  Nb6 {[%clk 0:01:50]} 15. e5 {[%clk 0:01:14]}  dxe5 {[%clk 0:01:44]} 16. Nxe5 {[%clk 0:01:15]}  Nxe5 {[%clk 0:01:44]} 17. dxe5 {[%clk 0:01:14]}  Bf6 {[%clk 0:01:37]} 18. Rxf4 {[%clk 0:01:11]}  Qxe5 {[%clk 0:01:27]} 19. Qg3 {[%clk 0:01:02]}  Be6 {[%clk 0:01:04]} 20. Bd4 {[%clk 0:00:51]}  Qg5 {[%clk 0:01:04]} 21. Bxe6 {[%clk 0:00:48]}  Rxe6 {[%clk 0:00:59]} 22. Rg4 {[%clk 0:00:47]}  Qh6 {[%clk 0:00:52]} 23. Bxf6 {[%clk 0:00:41]}  Rxf6 {[%clk 0:00:47]} 24. Re1 {[%clk 0:00:39]}  Nc4 {[%clk 0:00:34]} 25. h3 {[%clk 0:00:33]}  Rg6 {[%clk 0:00:29]} 26. Rxg6 {[%clk 0:00:31]}  Qxg6 {[%clk 0:00:29]} 27. Qc7 {[%clk 0:00:26]}  Qd6 {[%clk 0:00:21]} 28. Qxd6 {[%clk 0:00:24]}  Nxd6 {[%clk 0:00:21]} 29. Re7 {[%clk 0:00:24]}  Kf8 {[%clk 0:00:20]} 30. Rc7 {[%clk 0:00:23]}  Rc8 {[%clk 0:00:20]} 31. Rxa7 {[%clk 0:00:23]}  Nc4 {[%clk 0:00:21]} 32. b3 {[%clk 0:00:23]}  Ne3 {[%clk 0:00:22]} 33. Ne4 {[%clk 0:00:23]}  Rd8 {[%clk 0:00:12]} 34. c3 {[%clk 0:00:20]}  Rd1+ {[%clk 0:00:12]} 35. Kh2 {[%clk 0:00:20]}  Nf1+ {[%clk 0:00:13]} 36. Kg1 {[%clk 0:00:20]}  Ng3+ {[%clk 0:00:14]} 37. Kf2 {[%clk 0:00:20]}  Nxe4+ {[%clk 0:00:15]} 38. Ke3 {[%clk 0:00:19]}  Nxc3 {[%clk 0:00:16]} 39. Rc7 {[%clk 0:00:18]}  Nd5+ {[%clk 0:00:16]} 40. Ke4 {[%clk 0:00:18]}  Nxc7 {[%clk 0:00:16]} 0-1


[Site "https://www.chess.com"]

[Event "Titled Tuesday Blitz February 21 Late 2023"]
[White "Le Goff, Ronan"]
[Black "Lorenzo De La Riva, Lazaro"]
[WhiteFideId "612073"]
[BlackFideId "2268809"]
[WhiteElo "2320"]
[BlackElo "2404"]
[Result "0-1"]
[Round "02"]
[TimeControl "180+2"]
[Date "2023.02.21"]
[WhiteClock "0:00:19"]
[BlackClock "0:00:11"]

1. d4 {[%clk 0:02:58]}  Nf6 {[%clk 0:02:57]} 2. Nf3 {[%clk 0:02:53]}  d6 {[%clk 0:02:57]} 3. Nbd2 {[%clk 0:02:50]}  Nc6 {[%clk 0:02:49]} 4. e4 {[%clk 0:02:39]}  e5 {[%clk 0:02:49]} 5. c3 {[%clk 0:02:38]}  Qe7 {[%clk 0:02:23]} 6. d5 {[%clk 0:02:36]}  Nb8 {[%clk 0:02:22]} 7. Be2 {[%clk 0:02:30]}  g6 {[%clk 0:02:22]} 8. O-O {[%clk 0:02:29]}  Bg7 {[%clk 0:02:22]} 9. c4 {[%clk 0:02:30]}  O-O {[%clk 0:02:21]} 10. b4 {[%clk 0:02:30]}  a5 {[%clk 0:02:19]} 11. bxa5 {[%clk 0:02:28]}  c5 {[%clk 0:02:16]} 12. Nb3 {[%clk 0:02:26]}  Nxe4 {[%clk 0:02:15]} 13. Qc2 {[%clk 0:02:24]}  Nf6 {[%clk 0:02:04]} 14. Bb2 {[%clk 0:02:22]}  Bf5 {[%clk 0:01:58]} 15. Qd2 {[%clk 0:02:21]}  Ne4 {[%clk 0:01:57]} 16. Qe3 {[%clk 0:02:16]}  Nf6 {[%clk 0:01:50]} 17. Rfe1 {[%clk 0:02:15]}  Na6 {[%clk 0:01:43]} 18. a3 {[%clk 0:02:08]}  Qd7 {[%clk 0:01:38]} 19. Nfd2 {[%clk 0:02:03]}  Ng4 {[%clk 0:01:30]} 20. Qg3 {[%clk 0:01:58]}  h5 {[%clk 0:01:29]} 21. h3 {[%clk 0:01:58]}  Nh6 {[%clk 0:01:22]} 22. Bd3 {[%clk 0:01:55]}  h4 {[%clk 0:01:12]} 23. Qe3 {[%clk 0:01:53]}  Bxd3 {[%clk 0:01:05]} 24. Qxd3 {[%clk 0:01:54]}  f5 {[%clk 0:01:05]} 25. Qc2 {[%clk 0:01:49]}  Rae8 {[%clk 0:00:55]} 26. Nf3 {[%clk 0:01:48]}  Bf6 {[%clk 0:00:50]} 27. Qd2 {[%clk 0:01:47]}  Nf7 {[%clk 0:00:50]} 28. Rab1 {[%clk 0:01:44]}  g5 {[%clk 0:00:45]} 29. Nh2 {[%clk 0:01:42]}  Nh8 {[%clk 0:00:42]} 30. Nc1 {[%clk 0:01:31]}  Qh7 {[%clk 0:00:38]} 31. Ne2 {[%clk 0:01:10]}  Rf7 {[%clk 0:00:35]} 32. Bc3 {[%clk 0:01:08]}  Bd8 {[%clk 0:00:34]} 33. Kh1 {[%clk 0:01:08]}  Ng6 {[%clk 0:00:32]} 34. Ng1 {[%clk 0:01:04]}  Nf4 {[%clk 0:00:31]} 35. Qc2 {[%clk 0:00:59]}  Qh5 {[%clk 0:00:28]} 36. Bd2 {[%clk 0:00:57]}  Ng6 {[%clk 0:00:23]} 37. Ngf3 {[%clk 0:00:54]}  g4 {[%clk 0:00:21]} 38. Ng1 {[%clk 0:00:49]}  e4 {[%clk 0:00:19]} 39. f3 {[%clk 0:00:45]}  gxh3 {[%clk 0:00:18]} 40. Nxh3 {[%clk 0:00:45]}  Rfe7 {[%clk 0:00:10]} 41. fxe4 {[%clk 0:00:45]}  fxe4 {[%clk 0:00:09]} 42. Nf4 {[%clk 0:00:41]}  Nxf4 {[%clk 0:00:09]} 43. Bxf4 {[%clk 0:00:41]}  e3 {[%clk 0:00:07]} 44. Bxd6 {[%clk 0:00:39]}  Rg7 {[%clk 0:00:07]} 45. Rb3 {[%clk 0:00:34]}  Bg5 {[%clk 0:00:07]} 46. Nf3 {[%clk 0:00:32]}  h3 {[%clk 0:00:07]} 47. Bh2 {[%clk 0:00:17]}  hxg2+ {[%clk 0:00:07]} 48. Qxg2 {[%clk 0:00:18]}  Bh4 {[%clk 0:00:07]} 49. Rg1 {[%clk 0:00:11]}  Rxg2 {[%clk 0:00:06]} 50. Rxg2+ {[%clk 0:00:12]}  Kh7 {[%clk 0:00:06]} 51. Ng1 {[%clk 0:00:11]}  e2 {[%clk 0:00:06]} 52. Rh3 {[%clk 0:00:10]}  e1=Q {[%clk 0:00:05]} 53. Bg3 {[%clk 0:00:10]}  Qe4 {[%clk 0:00:05]} 54. Bxh4 {[%clk 0:00:10]}  Qhxh4 {[%clk 0:00:05]} 55. Rxh4+ {[%clk 0:00:10]}  Qxh4+ {[%clk 0:00:05]} 56. Rh2 {[%clk 0:00:11]}  Qxh2+ {[%clk 0:00:06]} 57. Kxh2 {[%clk 0:00:12]}  Re4 {[%clk 0:00:05]} 58. Nf3 {[%clk 0:00:12]}  Rxc4 {[%clk 0:00:06]} 59. d6 {[%clk 0:00:12]}  Rc3 {[%clk 0:00:07]} 60. d7 {[%clk 0:00:13]}  Rd3 {[%clk 0:00:07]} 61. Ne5 {[%clk 0:00:13]}  Rd5 {[%clk 0:00:07]} 62. Kg3 {[%clk 0:00:13]}  Nb8 {[%clk 0:00:07]} 63. Kf4 {[%clk 0:00:13]}  Rxd7 {[%clk 0:00:07]} 64. Nxd7 {[%clk 0:00:13]}  Nxd7 {[%clk 0:00:08]} 65. Ke4 {[%clk 0:00:14]}  Kg7 {[%clk 0:00:08]} 66. Kd5 {[%clk 0:00:14]}  Kf7 {[%clk 0:00:08]} 67. Kd6 {[%clk 0:00:15]}  Ke8 {[%clk 0:00:09]} 68. Kc7 {[%clk 0:00:15]}  c4 {[%clk 0:00:08]} 69. Kxb7 {[%clk 0:00:15]}  c3 {[%clk 0:00:09]} 70. a6 {[%clk 0:00:16]}  Nc5+ {[%clk 0:00:09]} 71. Kb6 {[%clk 0:00:16]}  Nxa6 {[%clk 0:00:10]} 72. Kxa6 {[%clk 0:00:17]}  c2 {[%clk 0:00:10]} 73. a4 {[%clk 0:00:18]}  c1=Q {[%clk 0:00:11]} 74. a5 {[%clk 0:00:18]}  Qc8+ {[%clk 0:00:11]} 75. Ka7 {[%clk 0:00:19]}  Qc7+ {[%clk 0:00:12]} 76. Ka8 {[%clk 0:00:19]}  Qxa5+ {[%clk 0:00:11]} 0-1


[Site "https://www.chess.com"]

[Event "Titled Tuesday Blitz February 21 Late 2023"]
[White "Mikhalsky, Vladimir"]
[Black "Arvelo Leo, Gian Carlo"]
[WhiteFideId "14144352"]
[BlackFideId "6402720"]
[WhiteElo "2219"]
[BlackElo "2075"]
[Result "1-0"]
[Round "02"]
[TimeControl "180+2"]
[Date "2023.02.21"]
[WhiteClock "0:00:06"]
[BlackClock "0:00:21"]

1. d4 {[%clk 0:03:00]}  Nf6 {[%clk 0:02:59]} 2. c4 {[%clk 0:02:58]}  g6 {[%clk 0:02:59]} 3. f3 {[%clk 0:02:57]}  Bg7 {[%clk 0:02:59]} 4. e4 {[%clk 0:02:57]}  d6 {[%clk 0:02:59]} 5. Nc3 {[%clk 0:02:58]}  O-O {[%clk 0:02:59]} 6. Be3 {[%clk 0:02:58]}  Nbd7 {[%clk 0:02:58]} 7. Qd2 {[%clk 0:02:58]}  c5 {[%clk 0:02:58]} 8. Nge2 {[%clk 0:02:54]}  a6 {[%clk 0:02:57]} 9. d5 {[%clk 0:02:50]}  Ne5 {[%clk 0:02:56]} 10. Nc1 {[%clk 0:02:50]}  e6 {[%clk 0:02:46]} 11. a4 {[%clk 0:02:44]}  exd5 {[%clk 0:02:44]} 12. cxd5 {[%clk 0:02:44]}  Bd7 {[%clk 0:02:22]} 13. a5 {[%clk 0:01:47]}  b5 {[%clk 0:02:15]} 14. axb6 {[%clk 0:01:47]}  Qxb6 {[%clk 0:02:16]} 15. Be2 {[%clk 0:01:43]}  Rfb8 {[%clk 0:02:12]} 16. Ra2 {[%clk 0:01:42]}  a5 {[%clk 0:02:12]} 17. O-O {[%clk 0:01:34]}  a4 {[%clk 0:02:02]} 18. h3 {[%clk 0:01:33]}  Qb4 {[%clk 0:01:59]} 19. Nd3 {[%clk 0:01:09]}  Nc4 {[%clk 0:01:35]} 20. Nxb4 {[%clk 0:01:00]}  Nxd2 {[%clk 0:01:35]} 21. Nc6 {[%clk 0:00:53]}  Nxf1 {[%clk 0:01:32]} 22. Bxf1 {[%clk 0:00:51]}  Rb4 {[%clk 0:01:12]} 23. Nxb4 {[%clk 0:00:43]}  cxb4 {[%clk 0:01:12]} 24. Nb5 {[%clk 0:00:44]}  Bxb5 {[%clk 0:00:44]} 25. Bxb5 {[%clk 0:00:42]}  a3 {[%clk 0:00:44]} 26. Bd2 {[%clk 0:00:22]}  Nxd5 {[%clk 0:00:36]} 27. exd5 {[%clk 0:00:19]}  Rb8 {[%clk 0:00:27]} 28. Bc4 {[%clk 0:00:16]}  axb2 {[%clk 0:00:25]} 29. Bd3 {[%clk 0:00:15]}  Rc8 {[%clk 0:00:24]} 30. Bxb4 {[%clk 0:00:11]}  Rc1+ {[%clk 0:00:24]} 31. Kh2 {[%clk 0:00:11]}  Be5+ {[%clk 0:00:23]} 32. g3 {[%clk 0:00:11]}  Rd1 {[%clk 0:00:22]} 33. Be4 {[%clk 0:00:10]}  f5 {[%clk 0:00:21]} 34. Bc2 {[%clk 0:00:05]}  Rc1 {[%clk 0:00:22]} 35. Bd3 {[%clk 0:00:04]}  Rd1 {[%clk 0:00:22]} 36. Bc2 {[%clk 0:00:05]}  b1=Q {[%clk 0:00:22]} 37. Bxb1 {[%clk 0:00:05]}  Rxb1 {[%clk 0:00:23]} 38. Ra8+ {[%clk 0:00:04]}  Kg7 {[%clk 0:00:23]} 39. Ra7+ {[%clk 0:00:04]}  Kf6 {[%clk 0:00:22]} 40. Ba5 {[%clk 0:00:04]}  Rb2+ {[%clk 0:00:23]} 41. Kh1 {[%clk 0:00:04]}  Rb1+ {[%clk 0:00:24]} 42. Kg2 {[%clk 0:00:04]}  Rb2+ {[%clk 0:00:24]} 43. Kh1 {[%clk 0:00:04]}  Bxg3 {[%clk 0:00:25]} 44. Bd8+ {[%clk 0:00:04]}  Ke5 {[%clk 0:00:25]} 45. Rxh7 {[%clk 0:00:03]}  Rb1+ {[%clk 0:00:24]} 46. Kg2 {[%clk 0:00:03]}  f4 {[%clk 0:00:24]} 47. h4 {[%clk 0:00:03]}  Kxd5 {[%clk 0:00:24]} 48. Kh3 {[%clk 0:00:02]}  Ke5 {[%clk 0:00:24]} 49. Kg4 {[%clk 0:00:03]}  Rg1 {[%clk 0:00:23]} 50. Re7+ {[%clk 0:00:03]}  Kd5 {[%clk 0:00:23]} 51. Kg5 {[%clk 0:00:02]}  Bf2+ {[%clk 0:00:24]} 52. Kxf4 {[%clk 0:00:02]}  Bxh4 {[%clk 0:00:24]} 53. Rd7 {[%clk 0:00:01]}  Bxd8 {[%clk 0:00:24]} 54. Rxd8 {[%clk 0:00:01]}  Ke6 {[%clk 0:00:24]} 55. Re8+ {[%clk 0:00:01]}  Kd7 {[%clk 0:00:23]} 56. Rf8 {[%clk 0:00:01]}  Ke7 {[%clk 0:00:22]} 57. Rc8 {[%clk 0:00:01]}  Ke6 {[%clk 0:00:20]} 58. Ra8 {[%clk 0:00:02]}  Kd5 {[%clk 0:00:20]} 59. Ke3 {[%clk 0:00:02]}  Re1+ {[%clk 0:00:20]} 60. Kf2 {[%clk 0:00:03]}  Re5 {[%clk 0:00:20]} 61. Ra5+ {[%clk 0:00:03]}  Ke6 {[%clk 0:00:20]} 62. Ra6 {[%clk 0:00:04]}  Rd5 {[%clk 0:00:20]} 63. Ra8 {[%clk 0:00:04]}  Kf5 {[%clk 0:00:20]} 64. Rf8+ {[%clk 0:00:04]}  Ke6 {[%clk 0:00:20]} 65. Rd8 {[%clk 0:00:04]}  Ke7 {[%clk 0:00:20]} 66. Rg8 {[%clk 0:00:04]}  Rg5 {[%clk 0:00:20]} 67. Rb8 {[%clk 0:00:03]}  Ke6 {[%clk 0:00:20]} 68. Rb7 {[%clk 0:00:04]}  d5 {[%clk 0:00:20]} 69. Ke3 {[%clk 0:00:04]}  Ke5 {[%clk 0:00:20]} 70. f4+ {[%clk 0:00:04]}  Kf6 {[%clk 0:00:20]} 71. fxg5+ {[%clk 0:00:04]}  Kxg5 {[%clk 0:00:20]} 72. Rd7 {[%clk 0:00:04]}  Kf6 {[%clk 0:00:20]} 73. Rxd5 {[%clk 0:00:04]}  Ke6 {[%clk 0:00:20]} 74. Ra5 {[%clk 0:00:05]}  Kf6 {[%clk 0:00:21]} 75. Kf4 {[%clk 0:00:06]} 1-0


[Site "https://www.chess.com"]

[Event "Titled Tuesday Blitz February 21 Late 2023"]
[White "Aspire_ie"]
[Black "Bambino Filho, Antonio Carlos"]
[BlackFideId "2113163"]
[WhiteElo "2261"]
[BlackElo "2144"]
[Result "0-1"]
[Round "02"]
[TimeControl "180+2"]
[Date "2023.02.21"]
[WhiteClock "0:00:01"]
[BlackClock "0:02:02"]

1. e4 {[%clk 0:03:00]}  c5 {[%clk 0:02:59]} 2. c4 {[%clk 0:03:00]}  Nc6 {[%clk 0:02:58]} 3. Nc3 {[%clk 0:03:00]}  g6 {[%clk 0:02:58]} 4. g3 {[%clk 0:03:00]}  Bg7 {[%clk 0:02:58]} 5. Bg2 {[%clk 0:03:00]}  d6 {[%clk 0:02:59]} 6. Nge2 {[%clk 0:03:01]}  Nf6 {[%clk 0:02:57]} 7. O-O {[%clk 0:03:01]}  O-O {[%clk 0:02:58]} 8. a3 {[%clk 0:03:01]}  Ne8 {[%clk 0:02:59]} 9. Rb1 {[%clk 0:03:00]}  Nc7 {[%clk 0:02:59]} 10. b4 {[%clk 0:02:59]}  Ne6 {[%clk 0:03:00]} 11. d3 {[%clk 0:02:54]}  Ned4 {[%clk 0:02:53]} 12. b5 {[%clk 0:02:50]}  Nxe2+ {[%clk 0:02:50]} 13. Nxe2 {[%clk 0:02:51]}  Nd4 {[%clk 0:02:51]} 14. Nxd4 {[%clk 0:02:29]}  Bxd4 {[%clk 0:02:52]} 15. Bb2 {[%clk 0:02:16]}  Bxb2 {[%clk 0:02:49]} 16. Rxb2 {[%clk 0:02:17]}  Qa5 {[%clk 0:02:50]} 17. Ra2 {[%clk 0:01:47]}  a6 {[%clk 0:02:49]} 18. bxa6 {[%clk 0:01:27]}  Rxa6 {[%clk 0:02:50]} 19. Qc1 {[%clk 0:01:11]}  b6 {[%clk 0:02:49]} 20. f4 {[%clk 0:01:09]}  Bd7 {[%clk 0:02:48]} 21. f5 {[%clk 0:01:06]}  b5 {[%clk 0:02:30]} 22. f6 {[%clk 0:01:02]}  exf6 {[%clk 0:02:30]} 23. Rxf6 {[%clk 0:01:02]}  Be6 {[%clk 0:02:30]} 24. Raf2 {[%clk 0:00:42]}  bxc4 {[%clk 0:02:23]} 25. dxc4 {[%clk 0:00:33]}  Qxa3 {[%clk 0:02:21]} 26. Qh6 {[%clk 0:00:32]}  Qa1+ {[%clk 0:02:16]} 27. Rf1 {[%clk 0:00:32]}  Qd4+ {[%clk 0:02:16]} 28. Kh1 {[%clk 0:00:32]}  Ra1 {[%clk 0:02:12]} 29. Rxa1 {[%clk 0:00:07]}  Qxa1+ {[%clk 0:02:13]} 30. Rf1 {[%clk 0:00:07]}  Qe5 {[%clk 0:02:13]} 31. Qc1 {[%clk 0:00:05]}  Qd4 {[%clk 0:02:10]} 32. Qc2 {[%clk 0:00:04]}  Qxc4 {[%clk 0:02:07]} 33. Qd2 {[%clk 0:00:03]}  Qd4 {[%clk 0:02:02]} 34. Qxd4 {[%clk 0:00:03]}  cxd4 {[%clk 0:02:03]} 35. Rd1 {[%clk 0:00:03]}  Rb8 {[%clk 0:02:02]} 36. h4 {[%clk 0:00:01]}  Rb4 {[%clk 0:02:02]} 0-1


[Site "https://www.chess.com"]

[Event "Titled Tuesday Blitz February 21 Late 2023"]
[White "CheckBits"]
[Black "Comas Fabrego, Lluis"]
[BlackFideId "2200325"]
[WhiteElo "2452"]
[BlackElo "2424"]
[Result "1-0"]
[Round "02"]
[TimeControl "180+2"]
[Date "2023.02.21"]
[WhiteClock "0:01:05"]
[BlackClock "0:00:43"]

1. d4 {[%clk 0:02:54]}  Nf6 {[%clk 0:02:59]} 2. Nf3 {[%clk 0:02:54]}  g6 {[%clk 0:02:59]} 3. Bg5 {[%clk 0:02:51]}  Bg7 {[%clk 0:02:58]} 4. Nbd2 {[%clk 0:02:50]}  d5 {[%clk 0:02:58]} 5. e3 {[%clk 0:02:46]}  O-O {[%clk 0:02:58]} 6. c4 {[%clk 0:02:45]}  c5 {[%clk 0:02:50]} 7. Rc1 {[%clk 0:02:38]}  cxd4 {[%clk 0:02:48]} 8. Nxd4 {[%clk 0:02:36]}  h6 {[%clk 0:02:35]} 9. Bh4 {[%clk 0:02:30]}  Qa5 {[%clk 0:02:21]} 10. cxd5 {[%clk 0:02:13]}  Nxd5 {[%clk 0:02:16]} 11. Bc4 {[%clk 0:02:06]}  g5 {[%clk 0:01:28]} 12. Bg3 {[%clk 0:01:59]}  e5 {[%clk 0:01:28]} 13. Nb5 {[%clk 0:01:50]}  Nb6 {[%clk 0:01:20]} 14. Nc7 {[%clk 0:01:43]}  Nxc4 {[%clk 0:01:17]} 15. Rxc4 {[%clk 0:01:42]}  Rd8 {[%clk 0:01:04]} 16. Nxa8 {[%clk 0:01:35]}  Be6 {[%clk 0:01:03]} 17. Ra4 {[%clk 0:01:17]}  Qd5 {[%clk 0:01:01]} 18. Nc7 {[%clk 0:01:09]}  Qc6 {[%clk 0:00:43]} 19. Nxe6 {[%clk 0:01:05]} 1-0


[Site "https://www.chess.com"]

[Event "Titled Tuesday Blitz February 21 Late 2023"]
[White "Chabris, Christopher"]
[Black "Becerra, Juan David"]
[WhiteFideId "2005263"]
[BlackFideId "4404998"]
[WhiteElo "2053"]
[BlackElo "2382"]
[Result "0-1"]
[Round "02"]
[TimeControl "180+2"]
[Date "2023.02.21"]
[WhiteClock "0:00:01"]
[BlackClock "0:01:19"]

1. e4 {[%clk 0:02:59]}  e5 {[%clk 0:02:51]} 2. Nf3 {[%clk 0:02:59]}  Nc6 {[%clk 0:02:51]} 3. Bb5 {[%clk 0:02:58]}  f5 {[%clk 0:02:51]} 4. d3 {[%clk 0:02:58]}  fxe4 {[%clk 0:02:51]} 5. dxe4 {[%clk 0:02:58]}  d6 {[%clk 0:02:51]} 6. c4 {[%clk 0:02:54]}  Be7 {[%clk 0:02:51]} 7. Nc3 {[%clk 0:02:53]}  Nf6 {[%clk 0:02:51]} 8. Nd5 {[%clk 0:02:51]}  Be6 {[%clk 0:02:44]} 9. Qe2 {[%clk 0:02:47]}  O-O {[%clk 0:02:42]} 10. Bxc6 {[%clk 0:02:31]}  bxc6 {[%clk 0:02:42]} 11. Nxe7+ {[%clk 0:02:23]}  Qxe7 {[%clk 0:02:43]} 12. h3 {[%clk 0:02:08]}  h6 {[%clk 0:02:39]} 13. b3 {[%clk 0:02:04]}  a5 {[%clk 0:02:35]} 14. Bb2 {[%clk 0:01:52]}  c5 {[%clk 0:02:35]} 15. Nd2 {[%clk 0:01:41]}  a4 {[%clk 0:02:33]} 16. O-O {[%clk 0:01:37]}  Qf7 {[%clk 0:02:32]} 17. f4 {[%clk 0:01:13]}  exf4 {[%clk 0:02:31]} 18. Rxf4 {[%clk 0:01:13]}  axb3 {[%clk 0:02:31]} 19. axb3 {[%clk 0:01:10]}  Rxa1+ {[%clk 0:02:32]} 20. Bxa1 {[%clk 0:01:10]}  Qg6 {[%clk 0:02:32]} 21. Qf3 {[%clk 0:01:00]}  Nd7 {[%clk 0:02:30]} 22. Rxf8+ {[%clk 0:00:57]}  Nxf8 {[%clk 0:02:31]} 23. e5 {[%clk 0:00:53]}  Qc2 {[%clk 0:02:13]} 24. Nf1 {[%clk 0:00:46]}  Ng6 {[%clk 0:01:53]} 25. exd6 {[%clk 0:00:45]}  cxd6 {[%clk 0:01:54]} 26. Qg3 {[%clk 0:00:43]}  Bf5 {[%clk 0:01:41]} 27. Qxd6 {[%clk 0:00:39]}  Bd3 {[%clk 0:01:40]} 28. Qxc5 {[%clk 0:00:30]}  Qb1 {[%clk 0:01:34]} 29. Qd4 {[%clk 0:00:21]}  Qxf1+ {[%clk 0:01:29]} 30. Kh2 {[%clk 0:00:22]}  Qf4+ {[%clk 0:01:30]} 31. Qxf4 {[%clk 0:00:19]}  Nxf4 {[%clk 0:01:31]} 32. Kg3 {[%clk 0:00:18]}  Ne2+ {[%clk 0:01:31]} 33. Kf3 {[%clk 0:00:15]}  Nc1 {[%clk 0:01:32]} 34. Ke3 {[%clk 0:00:12]}  Bf1 {[%clk 0:01:32]} 35. b4 {[%clk 0:00:07]}  Bxc4 {[%clk 0:01:31]} 36. Bd4 {[%clk 0:00:04]}  Bd5 {[%clk 0:01:24]} 37. g3 {[%clk 0:00:04]}  Kf7 {[%clk 0:01:24]} 38. b5 {[%clk 0:00:04]}  g5 {[%clk 0:01:20]} 39. b6 {[%clk 0:00:01]}  Nb3 {[%clk 0:01:19]} 0-1


[Site "https://www.chess.com"]

[Event "Titled Tuesday Blitz February 21 Late 2023"]
[White "ArchibaldCerveza29"]
[Black "Huang, Alex"]
[BlackFideId "4302508"]
[WhiteElo "2503"]
[BlackElo "2009"]
[Result "1-0"]
[Round "02"]
[TimeControl "180+2"]
[Date "2023.02.21"]
[WhiteClock "0:00:10"]
[BlackClock "0:00:15"]

1. e4 {[%clk 0:03:00]}  d6 {[%clk 0:02:56]} 2. d4 {[%clk 0:02:59]}  Nf6 {[%clk 0:02:57]} 3. Nc3 {[%clk 0:02:59]}  g6 {[%clk 0:02:58]} 4. f4 {[%clk 0:02:59]}  Bg7 {[%clk 0:02:56]} 5. Nf3 {[%clk 0:03:00]}  O-O {[%clk 0:02:54]} 6. e5 {[%clk 0:03:00]}  dxe5 {[%clk 0:02:42]} 7. fxe5 {[%clk 0:03:01]}  Nd5 {[%clk 0:02:41]} 8. Bc4 {[%clk 0:03:02]}  Nb6 {[%clk 0:02:41]} 9. Bb3 {[%clk 0:03:00]}  a5 {[%clk 0:02:40]} 10. a4 {[%clk 0:02:57]}  c5 {[%clk 0:02:40]} 11. Be3 {[%clk 0:01:46]}  Nc6 {[%clk 0:02:29]} 12. dxc5 {[%clk 0:01:40]}  Nd7 {[%clk 0:02:28]} 13. e6 {[%clk 0:01:38]}  fxe6 {[%clk 0:02:10]} 14. Bxe6+ {[%clk 0:01:39]}  Kh8 {[%clk 0:02:10]} 15. O-O {[%clk 0:01:39]}  Nde5 {[%clk 0:01:54]} 16. Bd5 {[%clk 0:01:13]}  Bg4 {[%clk 0:01:46]} 17. h3 {[%clk 0:01:01]}  Nxf3+ {[%clk 0:01:46]} 18. Bxf3 {[%clk 0:01:02]}  Bf5 {[%clk 0:01:38]} 19. Bxc6 {[%clk 0:00:45]}  bxc6 {[%clk 0:01:37]} 20. Qe2 {[%clk 0:00:45]}  Qb8 {[%clk 0:01:34]} 21. Rab1 {[%clk 0:00:33]}  Qb4 {[%clk 0:01:33]} 22. Rf4 {[%clk 0:00:29]}  Qb7 {[%clk 0:01:26]} 23. Rf3 {[%clk 0:00:25]}  e5 {[%clk 0:01:25]} 24. Bf2 {[%clk 0:00:17]}  Rab8 {[%clk 0:01:13]} 25. Ne4 {[%clk 0:00:17]}  Qb4 {[%clk 0:01:03]} 26. Ng5 {[%clk 0:00:16]}  Qxa4 {[%clk 0:00:59]} 27. Rf1 {[%clk 0:00:16]}  h6 {[%clk 0:00:57]} 28. Rxf5 {[%clk 0:00:12]}  Rxf5 {[%clk 0:00:52]} 29. Ne6 {[%clk 0:00:10]}  Qb5 {[%clk 0:00:41]} 30. Qe3 {[%clk 0:00:06]}  Re8 {[%clk 0:00:39]} 31. Nc7 {[%clk 0:00:05]}  Qb8 {[%clk 0:00:36]} 32. Nxe8 {[%clk 0:00:05]}  Qxe8 {[%clk 0:00:37]} 33. Rd1 {[%clk 0:00:06]}  Bf8 {[%clk 0:00:34]} 34. Rd3 {[%clk 0:00:05]}  Qe7 {[%clk 0:00:34]} 35. Qd2 {[%clk 0:00:05]}  e4 {[%clk 0:00:35]} 36. Rd7 {[%clk 0:00:05]}  Qf6 {[%clk 0:00:33]} 37. Bd4 {[%clk 0:00:05]}  Rf1+ {[%clk 0:00:31]} 38. Kh2 {[%clk 0:00:06]}  e3 {[%clk 0:00:23]} 39. Bxf6+ {[%clk 0:00:06]}  Rxf6 {[%clk 0:00:23]} 40. Qd4 {[%clk 0:00:06]}  Bg7 {[%clk 0:00:22]} 41. Qc4 {[%clk 0:00:07]}  Kh7 {[%clk 0:00:22]} 42. Rd8 {[%clk 0:00:08]}  Bf8 {[%clk 0:00:19]} 43. Rd7+ {[%clk 0:00:08]}  Kh8 {[%clk 0:00:17]} 44. Qe4 {[%clk 0:00:08]}  e2 {[%clk 0:00:17]} 45. Qxe2 {[%clk 0:00:09]}  Bg7 {[%clk 0:00:17]} 46. Qe8+ {[%clk 0:00:10]}  Kh7 {[%clk 0:00:18]} 47. Qe7 {[%clk 0:00:10]}  Rf7 {[%clk 0:00:15]} 48. Qxf7 {[%clk 0:00:10]} 1-0


[Site "https://www.chess.com"]

[Event "Titled Tuesday Blitz February 21 Late 2023"]
[White "Jimenez Garcia, Emmanuel"]
[Black "Bach, Matthias"]
[WhiteFideId "6504779"]
[BlackFideId "4603168"]
[WhiteElo "2410"]
[BlackElo "2214"]
[Result "0-1"]
[Round "02"]
[TimeControl "180+2"]
[Date "2023.02.21"]
[WhiteClock "0:00:29"]
[BlackClock "0:00:40"]

1. Nf3 {[%clk 0:02:51]}  c5 {[%clk 0:02:58]} 2. c4 {[%clk 0:02:50]}  e6 {[%clk 0:02:58]} 3. g3 {[%clk 0:02:49]}  d5 {[%clk 0:02:58]} 4. cxd5 {[%clk 0:02:48]}  exd5 {[%clk 0:02:58]} 5. Bg2 {[%clk 0:02:48]}  Nc6 {[%clk 0:02:57]} 6. O-O {[%clk 0:02:49]}  Nf6 {[%clk 0:02:57]} 7. d4 {[%clk 0:02:49]}  Be7 {[%clk 0:02:57]} 8. dxc5 {[%clk 0:02:49]}  Bxc5 {[%clk 0:02:57]} 9. Nc3 {[%clk 0:02:50]}  d4 {[%clk 0:02:53]} 10. Na4 {[%clk 0:02:50]}  Bb6 {[%clk 0:02:50]} 11. Bg5 {[%clk 0:02:46]}  O-O {[%clk 0:02:47]} 12. Rc1 {[%clk 0:02:43]}  h6 {[%clk 0:02:46]} 13. Bxf6 {[%clk 0:02:42]}  Qxf6 {[%clk 0:02:47]} 14. Nxb6 {[%clk 0:02:38]}  axb6 {[%clk 0:02:47]} 15. Qb3 {[%clk 0:02:38]}  Re8 {[%clk 0:02:43]} 16. Rfe1 {[%clk 0:02:19]}  h5 {[%clk 0:01:58]} 17. a3 {[%clk 0:02:07]}  Re6 {[%clk 0:01:45]} 18. Qxb6 {[%clk 0:02:03]}  Ne5 {[%clk 0:01:38]} 19. Qc7 {[%clk 0:01:54]}  d3 {[%clk 0:01:33]} 20. Red1 {[%clk 0:00:56]}  dxe2 {[%clk 0:01:26]} 21. Rd8+ {[%clk 0:00:57]}  Kh7 {[%clk 0:01:26]} 22. Ne1 {[%clk 0:00:54]}  Re7 {[%clk 0:01:15]} 23. Qc2+ {[%clk 0:00:45]}  Bf5 {[%clk 0:01:14]} 24. Qxe2 {[%clk 0:00:45]}  Rxd8 {[%clk 0:01:13]} 25. Qxh5+ {[%clk 0:00:44]}  Kg8 {[%clk 0:01:09]} 26. h3 {[%clk 0:00:42]}  Nd3 {[%clk 0:01:02]} 27. Nxd3 {[%clk 0:00:42]}  Bxd3 {[%clk 0:01:01]} 28. Qg4 {[%clk 0:00:34]}  Be2 {[%clk 0:00:51]} 29. Qb4 {[%clk 0:00:33]}  Ree8 {[%clk 0:00:44]} 30. Bxb7 {[%clk 0:00:31]}  Bf3 {[%clk 0:00:44]} 31. Ba6 {[%clk 0:00:29]}  Qh6 {[%clk 0:00:40]} 32. Bf1 {[%clk 0:00:29]} 0-1


[Site "https://www.chess.com"]